bitfinex/quotes_SOLUSD_20260306
["timestamp","ask_amount","ask_price","bid_price","bid_amount"]
[1772809326988,0.28432314,84.529,84.481,11.83698109]
[1772809327189,0.4952085,84.528,84.474,11.83784969]
[1772809327390,0.4952085,84.519,84.461,11.83978404]
[1772809327593,10.98481662,84.51,84.461,11.83978404]
[1772809327812,0.4952085,84.499,84.442,15.89793627]
[1772809328014,10.98481662,84.48,84.412,4.05599814]
[1772809328192,0.4952085,84.479,84.421,29.61337202]
[1772809328394,11.83740145,84.478,84.428,3.69383402]
[1772809328685,11.83740145,84.478,84.425,41.45691441]
[1772809329110,0.77953164,84.477,84.426,0.47507439]
[1772809329413,0.4952085,84.488,84.429,0.47507439]
[1772809329618,0.4952085,84.479,84.429,0.47507439]
[1772809330411,11.83740145,84.478,84.431,0.47507439]
[1772809330714,0.4952085,84.469,84.414,0.47507439]
[1772809331516,0.28432314,84.477,84.414,0.47507439]
[1772809331692,0.4952085,84.476,84.414,0.47507439]
[1772809331890,10.98481662,84.47,84.414,0.47507439]
[1772809332117,0.4952085,84.469,84.414,0.47507439]
[1772809332497,10.98481662,84.49,84.419,0.47507439]
[1772809332811,0.4952085,84.507,84.418,3.69383402]
[1772809332812,0.4952085,84.484,84.42,0.47507439]
[1772809333311,0.4952085,84.498,84.42,0.47507439]
[1772809333513,10.98481662,84.49,84.42,0.47507439]
[1772809333724,0.4952085,84.498,84.42,0.47507439]
[1772809334215,0.4952085,84.479,84.42,0.47507439]
[1772809334599,11.83740145,84.478,84.422,0.47507439]
[1772809335100,0.4952085,84.526,84.426,0.47507439]
[1772809335303,11.82907847,84.538,84.432,0.47507439]
[1772809335304,0.4952085,84.538,84.432,0.47507439]
[1772809335509,0.4952085,84.538,84.441,0.47507439]
[1772809335810,0.1,84.55,84.451,0.47507439]
[1772809335993,0.1,84.55,84.442,1.1842448]
[1772809335994,0.4952085,84.564,84.52,0.47507439]
[1772809336397,0.4952085,84.579,84.52,0.47507439]
[1772809336590,0.4952085,84.577,84.521,41.40982713]
[1772809336818,0.4952085,84.577,84.522,0.47507439]
[1772809337026,0.2,84.59,84.525,0.48988664]
[1772809337202,10.98481662,84.61,84.526,0.48988664]
[1772809337590,12.00058143,84.65,84.526,0.48988664]
[1772809337829,6.17108631,84.631,84.578,0.48988664]
[1772809337995,1e-08,84.62,84.578,0.48988664]
[1772809338202,11.81767688,84.619,84.565,0.48988664]
[1772809338508,0.2,84.64,84.525,3.97815716]
[1772809338509,1e-08,84.629,84.53,3.69383402]
[1772809338710,1e-08,84.629,84.533,4.82477569]
[1772809338919,1e-08,84.629,84.544,0.48988664]
[1772809340006,0.02022714,84.629,84.544,0.48988664]
[1772809340202,10.98481662,84.61,84.544,0.48988664]
[1772809340396,10.98481662,84.62,84.544,0.48988664]
[1772809340602,0.02022713,84.618,84.549,0.48988664]
[1772809340808,10.98481662,84.6,84.549,0.48988664]
[1772809341120,0.02022712,84.598,84.549,0.48988664]
[1772809341623,0.02022712,84.617,84.549,0.48988664]
[1772809341915,11.8156232,84.634,84.55,0.48988664]
[1772809342224,12.01481894,84.64,84.552,0.48988664]
[1772809342406,12.0148666,84.64,84.552,0.48988664]
[1772809342602,12.0148666,84.64,84.557,0.28432314]
[1772809342809,12.0148666,84.64,84.558,0.48988664]
[1772809342810,0.2,84.64,84.558,0.48988664]
[1772809343015,0.02022712,84.655,84.558,0.48988664]
[1772809343016,11.81047398,84.671,84.567,0.48988664]
[1772809343219,1e-08,84.654,84.574,0.48988664]
[1772809343417,11.82730504,84.695,84.591,0.48988664]
[1772809343611,0.02022711,84.708,84.602,0.48988664]
[1772809343805,0.02022711,84.708,84.601,3.97815716]
[1772809343806,0.02022711,84.708,84.605,0.48988664]
[1772809344007,0.02022711,84.708,84.604,0.28432314]
[1772809344008,6.16470988,84.731,84.62,3.69383402]
[1772809344220,6.16470988,84.731,84.646,3.69383402]
[1772809344423,6.16470988,84.731,84.634,0.28432314]
[1772809344424,11.80372761,84.719,84.651,0.47507439]
[1772809344615,0.12022711,84.709,84.655,3.69383402]
[1772809344816,11.80372761,84.719,84.656,0.47507439]
[1772809345021,11.80372761,84.719,84.657,0.47507439]
[1772809345327,0.1202271,84.718,84.657,0.47507439]
[1772809345707,16.09756107,84.7,84.652,11.81306998]
[1772809345909,0.1202271,84.699,84.652,11.81306998]
[1772809346227,0.1202271,84.698,84.649,4.04726283]
[1772809346428,0.1202271,84.698,84.65,11.81334908]
[1772809346624,0.28432314,84.697,84.65,41.34672179]
[1772809346928,0.28432314,84.697,84.65,41.82179618]
[1772809347131,16.09756107,84.69,84.649,4.04726283]
[1772809347429,0.1202271,84.696,84.65,11.81334908]
[1772809347631,41.3232898,84.698,84.569,1.18246638]
[1772809347632,0.12022709,84.669,84.614,0.47507439]
[1772809347836,0.12022709,84.659,84.614,12.29344959]
[1772809348026,16.09756107,84.65,84.608,11.81921324]
[1772809348226,16.21778816,84.65,84.604,4.05219117]
[1772809348426,0.12022709,84.649,84.601,0.47507439]
[1772809348925,0.12022709,84.649,84.594,4.05227556]
[1772809349329,0.12022709,84.647,84.594,4.05227556]
[1772809349525,4.94500278,84.644,84.594,4.05227556]
[1772809349732,0.12022709,84.644,84.594,4.05227556]
[1772809350052,16.09756107,84.62,84.594,3.93204847]
[1772809350212,16.09756107,84.62,84.5,1.18343195]
[1772809350213,16.09756107,84.6,84.559,0.50000018]
[1772809350420,0.28432314,84.609,84.56,4.05224642]
[1772809350724,16.09756107,84.6,84.561,11.82578257]
[1772809351034,0.28432314,84.607,84.561,11.82578257]
[1772809351239,16.09756107,84.6,84.561,11.82578257]
[1772809351538,0.28432314,84.607,84.561,11.82578257]
[1772809351727,16.09756107,84.6,84.56,4.05224642]
[1772809351928,16.09756107,84.6,84.56,15.87811637]
[1772809352130,0.28432314,84.607,84.56,15.87811637]
[1772809352317,41.36724659,84.608,84.56,15.87811637]
[1772809352318,16.09756107,84.59,84.56,4.05224642]
[1772809352836,0.28432314,84.597,84.56,4.05224642]
[1772809353028,11.82061041,84.598,84.56,4.05224642]
[1772809353223,0.28432314,84.589,84.56,4.05224642]
[1772809353417,0.28432314,84.589,84.544,11.82816048]
[1772809353823,0.28432314,84.589,84.545,0.50000018]
[1772809354025,16.09756107,84.58,84.538,11.82892539]
[1772809354420,16.09756107,84.58,84.509,4.05390477]
[1772809354421,16.09756107,84.56,84.516,0.50000018]
[1772809354724,0.28432314,84.571,84.516,0.50000018]
[1772809354725,16.09756107,84.55,84.516,0.50000018]
[1772809354934,11.82746099,84.549,84.516,0.50000018]
[1772809355138,11.82746099,84.549,84.479,0.50000018]
[1772809355139,16.09756107,84.53,84.479,0.50000018]
[1772809355942,16.09756107,84.52,84.468,0.50000018]
[1772809356146,16.09756107,84.51,84.469,0.50000018]
[1772809356335,16.09756107,84.5,84.456,0.50000018]
[1772809356719,16.09756107,84.5,84.455,11.84054625]
[1772809356720,100.53341847,84.549,84.459,0.50000018]
[1772809357024,2.72962903,84.629,84.446,2.84428156]
[1772809357025,9.61778479,84.581,84.46,0.50000018]
[1772809357227,3.69383402,84.577,84.464,0.50000018]
[1772809357544,0.28432314,84.539,84.465,0.50000018]
[1772809357741,16.09756107,84.55,84.465,0.50000018]
[1772809358048,16.09756107,84.53,84.465,0.50000018]
[1772809358220,0.28432314,84.539,84.465,0.50000018]
[1772809358536,16.09756107,84.52,84.465,0.50000018]
[1772809358957,41.69513017,84.519,84.47,0.50000018]
[1772809359246,12.11598229,84.519,84.47,0.50000018]
[1772809359940,16.09756107,84.51,84.47,0.50000018]
[1772809360141,16.09756107,84.51,84.467,0.50000018]
[1772809360439,11.83074055,84.526,84.469,3.69383402]
[1772809360637,47.26456579,84.63,84.469,3.69383402]
[1772809360638,11.82772871,84.548,84.471,0.50000018]
[1772809360831,16.09756107,84.54,84.471,0.50000018]
[1772809361020,0.28432314,84.538,84.476,0.50000018]
[1772809361440,16.09756107,84.53,84.476,0.50000018]
[1772809361637,16.09756107,84.52,84.476,0.50000018]
[1772809361832,0.28432314,84.529,84.476,0.50000018]
[1772809362036,0.28432314,84.538,84.476,0.50000018]
[1772809362237,11.82886005,84.539,84.476,0.50000018]
[1772809362448,11.82886005,84.539,84.477,0.50000018]
[1772809362745,11.82746099,84.549,84.477,0.50000018]
[1772809362935,29.56711254,84.554,84.476,0.28432314]
[1772809362936,0.28432314,84.558,84.482,0.50000018]
[1772809363126,11.82606227,84.559,84.483,0.50000018]
[1772809363523,0.28432314,84.558,84.483,0.50000018]
[1772809363742,29.55911114,84.577,84.483,0.50000018]
[1772809363943,16.09756107,84.55,84.483,0.50000018]
[1772809364247,16.09756107,84.54,84.483,0.50000018]
[1772809364623,0.28432314,84.549,84.483,0.50000018]
[1772809365047,29.56716437,84.554,84.488,0.50000018]
[1772809365224,16.09756107,84.55,84.489,0.50000018]
[1772809365424,16.09756107,84.56,84.489,0.50000018]
[1772809365836,41.39023899,84.561,84.489,0.50000018]
[1772809365837,0.28432314,84.549,84.489,0.50000018]
[1772809366143,11.82578257,84.561,84.489,0.50000018]
[1772809366440,16.09756107,84.57,84.489,0.50000018]
[1772809366642,16.09756107,84.59,84.489,0.50000018]
[1772809366843,16.09756107,84.58,84.489,0.50000018]
[1772809367045,16.09756107,84.58,84.49,100.60362171]
[1772809367348,0.14216157,84.579,84.495,0.50000018]
[1772809367651,16.09756107,84.55,84.495,0.50000018]
[1772809368142,0.14216157,84.559,84.495,0.50000018]
[1772809368143,16.09756107,84.54,84.495,0.50000018]
[1772809368333,16.09756107,84.53,84.495,0.50000018]
[1772809368522,16.09756107,84.54,84.495,0.50000018]
[1772809369356,0.14216157,84.569,84.501,0.50000018]
[1772809369544,16.09756107,84.55,84.501,0.50000018]
[1772809370149,16.09756107,84.57,84.501,0.50000018]
[1772809370344,16.09756107,84.56,84.501,0.50000018]
[1772809370649,0.28432314,84.559,84.501,0.50000018]
[1772809371333,16.09756107,84.56,84.503,0.50000018]
[1772809371528,47.24156092,84.672,84.507,0.50000018]
[1772809371529,16.09756107,84.58,84.507,0.50000018]
[1772809372150,16.09756107,84.57,84.507,0.50000018]
[1772809372348,41.37898419,84.584,84.507,0.50000018]
[1772809372749,16.09756107,84.58,84.507,0.50000018]
[1772809373450,0.14216157,84.578,84.51,0.50000018]
[1772809373654,16.09756107,84.56,84.51,0.50000018]
[1772809374234,16.09756107,84.58,84.51,0.50000018]
[1772809374549,11.81921331,84.608,84.513,0.50000018]
[1772809374749,16.09756107,84.6,84.513,0.50000018]
[1772809375054,0.14216157,84.606,84.513,0.50000018]
[1772809375226,41.36724659,84.608,84.516,0.50000018]
[1772809375638,16.09756107,84.6,84.522,0.50000018]
[1772809375837,16.09756107,84.59,84.522,0.50000018]
[1772809376037,0.28432314,84.599,84.522,0.50000018]
[1772809376426,41.36724659,84.608,84.522,0.50000018]
[1772809376854,16.09756107,84.6,84.522,0.50000018]
[1772809377050,0.28432314,84.607,84.522,0.50000018]
[1772809377352,16.09756107,84.6,84.522,0.50000018]
[1772809378061,0.28432314,84.605,84.527,0.50000018]
[1772809378241,11.8194927,84.606,84.528,0.50000018]
[1772809378438,16.09756107,84.63,84.53,0.50000018]
[1772809378751,16.09756107,84.64,84.533,0.50000018]
[1772809378955,16.09756107,84.64,84.526,3.69383402]
[1772809378956,16.09756107,84.64,84.536,0.50000018]
[1772809379154,41.35014117,84.643,84.544,0.50000018]
[1772809379338,16.09756107,84.64,84.547,0.50000018]
[1772809379838,16.09756107,84.63,84.547,0.50000018]
[1772809380032,41.35698164,84.629,84.551,3.69383402]
[1772809380228,16.09756107,84.61,84.553,0.50000018]
[1772809380650,0.14216157,84.628,84.553,0.50000018]
[1772809380840,0.28432314,84.628,84.553,0.50000018]
[1772809381043,16.09756107,84.61,84.553,0.50000018]
[1772809381351,0.28432314,84.622,84.553,0.50000018]
[1772809381352,16.09756107,84.6,84.553,0.50000018]
[1772809381757,0.28432314,84.612,84.553,0.50000018]
[1772809382051,16.09756107,84.6,84.553,0.50000018]
[1772809382252,16.09756107,84.59,84.541,0.50000018]
[1772809382847,0.28432314,84.589,84.541,0.50000018]
[1772809383041,16.09756107,84.59,84.533,0.50000018]
[1772809383747,100.47400086,84.599,84.533,0.50000018]
[1772809383748,41.37164741,84.599,84.533,0.50000018]
[1772809383941,0.28432314,84.598,84.533,0.50000018]
[1772809384136,4.82477569,84.612,84.538,0.50000018]
[1772809384137,11.81987139,84.604,84.538,0.50000018]
[1772809384343,16.09756107,84.61,84.538,0.50000018]
[1772809384344,41.36186908,84.619,84.542,0.50000018]
[1772809384555,16.09756107,84.59,84.542,0.50000018]
[1772809384970,0.28432314,84.599,84.542,0.50000018]
[1772809385253,16.09756107,84.58,84.537,11.8291399]
[1772809385457,16.09756107,84.58,84.53,0.50000018]
[1772809385644,3.69383402,84.606,84.532,0.50000018]
[1772809385645,0.28432314,84.589,84.532,0.50000018]
[1772809386266,11.82326582,84.579,84.534,0.50000018]
[1772809386754,11.82200784,84.588,84.534,0.50000018]
[1772809386951,0.28432314,84.587,84.534,0.50000018]
[1772809387335,0.28432314,84.579,84.534,0.50000018]
[1772809387545,16.09756107,84.56,84.511,29.58170582]
[1772809387760,16.09756107,84.56,84.513,0.50000018]
[1772809387945,16.09756107,84.57,84.513,0.50000018]
[1772809388142,41.38632358,84.569,84.514,41.41325696]
[1772809388340,41.38632358,84.569,84.515,0.50000018]
[1772809388744,11.82466388,84.569,84.518,0.50000018]
[1772809388952,10.98663905,84.56,84.518,0.50000018]
[1772809389452,0.28432314,84.568,84.518,0.50000018]
[1772809389837,10.98663905,84.56,84.518,0.50000018]
[1772809390240,41.39121796,84.559,84.519,11.83165915]
[1772809390447,41.39121796,84.559,84.393,35.50926199]
[1772809390448,10.98663905,84.55,84.506,0.50000018]
[1772809390948,0.28432314,84.558,84.506,0.50000018]
[1772809391148,3.69383402,84.576,84.506,0.50000018]
[1772809391149,11.82019125,84.601,84.506,0.50000018]
[1772809391351,11.82019125,84.601,84.509,0.50000018]
[1772809391541,10.98663905,84.59,84.512,0.50000018]
[1772809392255,10.98663905,84.59,84.505,3.69383402]
[1772809392256,10.98663905,84.62,84.517,0.50000018]
[1772809392588,10.98663905,84.62,84.527,0.50000018]
[1772809392762,41.34330296,84.657,84.527,0.50000018]
[1772809392763,10.98663905,84.61,84.527,0.50000018]
[1772809392962,10.98663905,84.62,84.529,0.50000018]
[1772809393161,10.98663905,84.63,84.532,0.50000018]
[1772809393367,10.98663905,84.61,84.535,0.50000018]
[1772809393667,10.98663905,84.6,84.535,0.50000018]
[1772809394459,3.69383402,84.656,84.541,0.50000018]
[1772809394642,10.98663905,84.62,84.541,0.50000018]
[1772809394843,10.98663905,84.63,84.541,0.50000018]
[1772809395046,10.98663905,84.65,84.546,0.50000018]
[1772809395244,10.98663905,84.64,84.549,0.50000018]
[1772809395746,0.28432314,84.629,84.549,0.50000018]
[1772809396072,10.98663905,84.63,84.551,0.50000018]
[1772809396442,11.81502398,84.638,84.557,0.50000018]
[1772809396638,11.81502398,84.638,84.559,0.50000018]
[1772809396843,11.81502398,84.638,84.561,0.50000018]
[1772809397245,10.98663905,84.65,84.561,0.50000018]
[1772809397452,10.98663905,84.64,84.561,0.50000018]
[1772809397768,0.14216157,84.639,84.561,0.50000018]
[1772809397963,10.98663905,84.63,84.561,0.50000018]
[1772809398262,0.28432314,84.639,84.561,0.50000018]
[1772809398263,0.28432314,84.646,84.561,0.50000018]
[1772809398464,11.81069813,84.669,84.567,0.50000018]
[1772809398649,41.33744345,84.669,84.567,0.50000018]
[1772809398848,10.98663905,84.66,84.57,0.50000018]
[1772809399367,0.28432314,84.659,84.57,0.50000018]
[1772809399665,59.04700948,84.679,84.569,0.28432314]
[1772809399666,11.80930336,84.679,84.573,0.50000018]
[1772809399868,11.80930336,84.679,84.566,3.69383402]
[1772809399869,11.80853784,84.685,84.588,4.82477569]
[1772809400125,11.80930336,84.679,84.596,0.50000018]
[1772809400267,10.98663905,84.65,84.596,0.50000018]
[1772809400471,10.98663905,84.65,84.553,1.18269014]
[1772809400472,10.98663905,84.65,84.601,0.50000018]
[1772809400647,10.98663905,84.62,84.59,2.52194462]
[1772809400847,10.98663905,84.61,84.59,2.52194462]
[1772809401043,10.98663905,84.6,84.522,0.50000018]
[1772809401247,0.28432314,84.609,84.522,0.50000018]
[1772809401552,10.98663905,84.59,84.525,0.50000018]
[1772809401763,10.98663905,84.58,84.525,0.50000018]
[1772809402462,10.98663905,84.57,84.526,11.83067931]
[1772809402664,0.28432314,84.569,84.526,11.83067931]
[1772809403351,10.98663905,84.55,84.502,12.33403961]
[1772809403552,10.98663905,84.54,84.502,12.33403961]
[1772809403777,0.28432314,84.549,84.502,41.91913818]
[1772809403974,0.28432314,84.549,84.502,12.33403961]
[1772809404461,30.0,84.537,84.502,12.33403961]
[1772809405084,30.0,84.537,84.502,11.83403943]
[1772809405269,10.98663905,84.53,84.49,0.50000018]
[1772809405471,30.0,84.528,84.492,11.83544004]
[1772809406061,30.0,84.528,84.493,0.50000018]
[1772809406261,4.82477569,84.552,84.493,0.50000018]
[1772809406262,0.28432314,84.554,84.493,0.50000018]
[1772809406876,11.82690147,84.553,84.495,0.50000018]
[1772809407188,11.82690147,84.553,84.498,0.50000018]
[1772809407577,40.54800731,84.57,84.499,0.50000018]
[1772809407778,11.96682545,84.569,84.499,0.50000018]
[1772809408084,0.14216157,84.549,84.499,0.50000018]
[1772809408272,0.28432314,84.549,84.499,0.50000018]
[1772809408467,10.98663905,84.56,84.499,0.50000018]
[1772809408782,0.28432314,84.559,84.499,0.50000018]
[1772809408986,0.28432314,84.559,84.501,0.50000018]
[1772809408987,0.28432314,84.557,84.501,0.50000018]
[1772809409169,11.82559441,84.563,84.504,0.50000018]
[1772809409364,10.98663905,84.56,84.504,0.50000018]
[1772809409885,10.98663905,84.55,84.504,0.50000018]
[1772809410068,0.28432314,84.549,84.504,0.50000018]
[1772809410464,10.98663905,84.56,84.504,0.50000018]
[1772809410665,0.28432314,84.559,84.504,0.50000018]
[1772809410870,12.10898702,84.569,84.506,0.50000018]
[1772809411177,4.82477569,84.582,84.506,0.50000018]
[1772809411178,11.82401771,84.574,84.509,0.50000018]
[1772809411362,10.98663905,84.55,84.509,0.50000018]
[1772809411566,0.28432314,84.549,84.505,11.83361931]
[1772809411772,0.28432314,84.549,84.506,0.50000018]
[1772809411986,0.28432314,84.559,84.506,0.50000018]
[1772809412487,41.38392973,84.574,84.506,0.50000018]
[1772809412790,0.28432314,84.569,84.506,0.50000018]
[1772809412985,11.8248037,84.568,84.509,0.50000018]
[1772809413487,10.98663905,84.56,84.509,0.50000018]
[1772809413987,0.28432314,84.559,84.509,0.50000018]
[1772809414189,10.98663905,84.54,84.502,11.83399138]
[1772809414388,0.28432314,84.539,84.498,0.50000018]
[1772809414968,0.28432314,84.539,84.498,12.33453113]
[1772809415486,5.10909883,84.562,84.499,0.50000018]
[1772809415666,0.28432314,84.549,84.499,0.50000018]
[1772809415875,10.98663905,84.54,84.499,0.50000018]
[1772809416075,10.98663905,84.53,84.498,11.83453095]
[1772809416465,4.82477569,84.562,84.49,0.50000018]
[1772809416680,0.28432314,84.549,84.49,0.50000018]
[1772809416879,11.8248852,84.568,84.497,3.69383402]
[1772809417082,10.98663905,84.59,84.499,0.50000018]
[1772809417284,59.10133212,84.601,84.499,0.50000018]
[1772809417285,10.98663905,84.57,84.499,0.50000018]
[1772809417596,0.28432314,84.582,84.499,0.50000018]
[1772809417890,59.10133212,84.601,84.499,0.50000018]
[1772809417891,10.98663905,84.56,84.499,0.50000018]
[1772809418288,10.98663905,84.55,84.499,0.50000018]
[1772809418873,10.98663905,84.54,84.499,0.50000018]
[1772809419074,0.28432314,84.549,84.501,0.50000018]
[1772809419282,11.82718122,84.551,84.501,0.50000018]
[1772809419491,11.27096219,84.55,84.501,0.50000018]
[1772809419885,0.28432314,84.569,84.501,0.50000018]
[1772809420095,0.28432314,84.569,84.5,41.42011833]
[1772809420096,10.98663905,84.56,84.502,0.50000018]
[1772809420306,0.28432314,84.559,84.502,0.50000018]
[1772809420674,59.11084311,84.587,84.5,41.42011833]
[1772809420675,0.28432314,84.569,84.504,0.50000018]
[1772809421095,0.28432314,84.567,84.509,0.50000018]
[1772809421298,10.98663905,84.58,84.51,0.50000018]
[1772809421809,41.35698164,84.629,84.51,0.50000018]
[1772809421810,10.98663905,84.6,84.51,0.50000018]
[1772809422107,5.10909883,84.609,84.51,0.50000018]
[1772809422280,10.98663905,84.59,84.51,0.50000018]
[1772809422680,10.98663905,84.58,84.51,0.50000018]
[1772809422881,0.28432314,84.589,84.51,0.50000018]
[1772809423177,0.28432314,84.587,84.516,0.50000018]
[1772809423600,0.28432314,84.579,84.516,0.50000018]
[1772809424796,11.82200784,84.588,84.516,0.50000018]
[1772809424995,10.98663905,84.58,84.521,0.50000018]
[1772809425307,0.28432314,84.587,84.522,0.50000018]
[1772809426103,3.69383402,84.61,84.522,0.50000018]
[1772809426311,4.82477569,84.609,84.522,0.50000018]
[1772809426684,10.98663905,84.6,84.522,0.50000018]
[1772809426902,0.28432314,84.599,84.522,0.50000018]
[1772809427104,0.28432314,84.597,84.528,0.50000018]
[1772809427312,5.10909883,84.597,84.528,0.50000018]
[1772809427513,0.28432314,84.589,84.528,0.50000018]
[1772809428110,11.81390733,84.646,84.53,0.50000018]
[1772809428313,22.5782134,84.64,84.532,0.50000018]
[1772809428491,10.98663905,84.64,84.534,0.50000018]
[1772809428694,0.28432314,84.639,84.537,0.50000018]
[1772809428898,0.28432314,84.639,84.54,0.50000018]
[1772809429205,10.98663905,84.63,84.546,0.50000018]
[1772809429401,4.82477569,84.637,84.546,0.50000018]
[1772809429596,10.98663905,84.63,84.546,0.50000018]
[1772809429911,0.28432314,84.619,84.546,0.50000018]
[1772809430790,10.98663905,84.61,84.546,0.50000018]
[1772809430989,0.28432314,84.609,84.546,0.50000018]
[1772809431195,0.28432314,84.607,84.55,3.69383402]
[1772809431387,0.28432314,84.607,84.551,0.50000018]
[1772809432293,10.98663905,84.6,84.551,0.50000018]
[1772809432610,0.28432314,84.607,84.551,0.50000018]
[1772809433191,11.8194927,84.606,84.552,41.3946447]
[1772809433391,0.28432314,84.605,84.553,0.50000018]
[1772809433911,10.98663905,84.58,84.542,0.50000018]
[1772809434116,0.28432314,84.579,84.537,11.82902446]
[1772809434503,0.28432314,84.599,84.538,0.50000018]
[1772809434699,0.28432314,84.599,84.541,0.50000018]
[1772809435319,0.14216157,84.605,84.544,0.50000018]
[1772809435502,10.98663905,84.59,84.544,0.50000018]
[1772809435700,3.69383402,84.617,84.533,0.50000018]
[1772809435701,0.14216157,84.579,84.533,0.50000018]
[1772809435918,0.28432314,84.579,84.533,0.50000018]
[1772809436093,10.98663905,84.57,84.533,0.50000018]
[1772809436295,0.28432314,84.559,84.511,0.50000018]
[1772809437004,2.72962903,84.664,84.511,0.50000018]
[1772809437204,4.82477569,84.579,84.511,0.50000018]
[1772809437408,10.98663905,84.58,84.516,0.50000018]
[1772809437648,0.28432314,84.579,84.516,0.50000018]
[1772809437806,10.98663905,84.59,84.517,0.50000018]
[1772809438002,382.0775999,89.924,84.517,0.50000018]
[1772809438003,59.08346941,84.627,84.517,0.50000018]
[1772809438208,4.82477569,84.613,84.517,0.50000018]
[1772809438407,10.98663905,84.59,84.517,0.50000018]
[1772809438718,0.28432314,84.589,84.517,0.50000018]
[1772809439125,10.98663905,84.58,84.517,0.50000018]
[1772809439900,0.28432314,84.587,84.522,0.50000018]
[1772809440307,0.28432314,84.579,84.522,0.50000018]
[1772809440804,10.98663905,84.6,84.523,0.50000018]
[1772809441102,2.72962903,84.628,84.523,0.50000018]
[1772809441404,519.9,84.713,84.526,0.50000018]
[1772809441405,40.52350105,84.64,84.526,0.50000018]
[1772809441721,10.98663905,84.62,84.529,0.50000018]
[1772809441898,41.3516068,84.64,84.535,0.50000018]
[1772809441899,10.98663905,84.61,84.535,0.50000018]
[1772809442093,10.98663905,84.6,84.535,0.50000018]
[1772809442304,41.36186908,84.619,84.535,0.50000018]
[1772809442305,10.98663905,84.58,84.535,0.50000018]
[1772809442712,0.28432314,84.579,84.535,0.50000018]
[1772809443114,41.36186908,84.619,84.535,0.50000018]
[1772809443115,10.98663905,84.59,84.535,0.50000018]
[1772809443418,0.28432314,84.589,84.535,0.50000018]
[1772809443824,0.28432314,84.587,84.537,0.50000018]
[1772809444123,10.98663905,84.58,84.537,0.50000018]
[1772809444326,0.28432314,84.579,84.537,0.50000018]
[1772809444620,4.82477569,84.593,84.537,0.50000018]
[1772809444621,0.28432314,84.598,84.537,0.50000018]
[1772809444820,10.98663905,84.6,84.541,0.50000018]
[1772809445145,41.36675767,84.609,84.541,0.50000018]
[1772809445146,10.98663905,84.58,84.541,0.50000018]
[1772809445323,10.98663905,84.57,84.53,11.83010275]
[1772809445501,3.69383402,84.597,84.53,12.33010293]
[1772809445502,10.98663905,84.58,84.53,12.33010293]
[1772809445700,0.28432314,84.569,84.53,11.83010275]
[1772809445923,4.82477569,84.593,84.502,3.69383402]
[1772809445924,11.8248037,84.568,84.522,0.50000018]
[1772809446305,41.66610178,84.579,84.522,0.50000018]
[1772809446821,0.28432314,84.559,84.521,11.83137918]
[1772809447323,0.28432314,84.569,84.522,0.50000018]
[1772809447625,0.28432314,84.578,84.522,0.50000018]
[1772809447921,10.98663905,84.56,84.513,0.50000018]
[1772809449120,0.28432314,84.559,84.513,0.50000018]
[1772809449321,10.98663905,84.57,84.513,0.50000018]
[1772809449521,0.28432314,84.569,84.513,0.50000018]
[1772809449915,10.98663905,84.55,84.515,0.50000018]
[1772809450306,10.98663905,84.55,84.514,11.83235913]
[1772809450522,10.99192814,84.55,84.514,11.83235913]
[1772809450724,0.28432314,84.539,84.485,0.50000018]
[1772809451022,0.28432314,84.558,84.485,0.50000018]
[1772809451216,10.99192814,84.53,84.485,0.50000018]
[1772809451418,0.14216157,84.529,84.479,11.83726133]
[1772809451609,0.28432314,84.519,84.479,11.83726133]
[1772809451802,0.28432314,84.517,84.475,11.83782184]
[1772809452128,10.99192814,84.5,84.463,11.83950368]
[1772809452311,0.28432314,84.517,84.464,0.50000018]
[1772809452921,0.28432314,84.509,84.464,0.50000018]
[1772809453128,0.28432314,84.509,84.444,53.2]
[1772809453129,0.28432314,84.499,84.446,0.50000018]
[1772809453919,0.28432314,84.497,84.448,0.50000018]
[1772809454110,0.28432314,84.509,84.448,0.50000018]
[1772809454633,0.28432314,84.509,84.451,0.50000018]
[1772809454820,11.83165915,84.519,84.451,0.28432314]
[1772809455024,0.28432314,84.518,84.452,0.50000018]
[1772809455921,0.28432314,84.516,84.457,0.50000018]
[1772809456118,0.28432314,84.509,84.457,0.50000018]
[1772809456529,41.41178697,84.517,84.457,0.50000018]
[1772809456726,0.28432314,84.509,84.457,0.50000018]
[1772809456925,5.10909883,84.516,84.457,0.50000018]
[1772809456926,10.99192814,84.55,84.458,0.50000018]
[1772809457233,10.99192814,84.54,84.458,0.50000018]
[1772809457414,10.99192814,84.55,84.458,0.50000018]
[1772809457937,0.28432314,84.537,84.463,0.50000018]
[1772809458131,0.28432314,84.548,84.464,0.50000018]
[1772809458628,0.14216157,84.548,84.464,0.50000018]
[1772809458833,0.14216157,84.539,84.464,0.50000018]
[1772809459012,0.28432314,84.539,84.464,0.50000018]
[1772809459615,41.39611348,84.549,84.464,0.50000018]
[1772809459919,41.39611348,84.549,84.463,0.28432314]
[1772809459920,0.28432314,84.546,84.469,0.50000018]
[1772809460238,41.39709273,84.547,84.47,0.50000018]
[1772809460629,0.28432314,84.546,84.47,0.50000018]
[1772809461032,0.69690842,84.552,84.472,0.50000018]
[1772809461232,0.69690842,84.552,84.475,0.50000018]
[1772809461426,10.99192814,84.55,84.475,0.50000018]